Cogmind - Beta 10.2 @@@ ROGUE MODE // 2021.06.11 @ 15:15:09 Player: Exp. Geonium Core Result: Destroyed by Y-54 Guardian with Flak Gun Performance ------------- Evolutions (3) 1500 Regions Visited (8) 1600 Robots Destroyed (61) 305 Value Destroyed (2427) 2427 Prototype IDs (0) 0 Alien Tech Used (0) 0 Bonus (2247) 2247 TOTAL SCORE: 8079 Bonus ------- Pacifist 200 High Alert Combat Kills 160 Follower Combat Kills 182 Entered Garrisons 600 Used RIF Installer 1500 Friendly Fire -395 Cogmind --------- Core Integrity 0/700 Matter 290/300 Energy 153/290 System Corruption 0% Temperature Cool (0) Movement Rolling (130) Ox5 Location -7/Garrison Parts ------- > --- POWER (1) -------- Improved Deuterium Engine > --- PROPULSION (2) --- Wheel > --- UTILITY (8) ------ High-capacity Storage Unit Hardened Light Armor Plating Hardened Light Armor Plating Relay Coupler [NC] (4) Relay Coupler [Grunt] (7) Relay Coupler [Brawler] (25) Relay Coupler [Duelist] (27) Relay Coupler [Hunter] (4) > --- WEAPON (2) ------- Remote Datajack Katana > --- INVENTORY (12) --- High-capacity Storage Unit Advanced Weight Redist. System Propulsion Shielding Hardened Light Armor Plating Relay Coupler [NC] (33) Relay Coupler [Brawler] (33) Relay Coupler [Demolisher] (17) Relay Coupler [Hunter] (14) Particle Gun Datajack Improved Datajack Peak State ------------ > --- POWER ------------ Light Nuclear Core > --- PROPULSION ------- Compact Wheel Armored Wheel > --- UTILITY ---------- High-capacity Storage Unit High-capacity Storage Unit System Shield Relay Coupler [NC] Relay Coupler [Swarmer] Relay Coupler [Grunt] Relay Coupler [Duelist] Relay Coupler [Sentry] > --- WEAPON ----------- Greatsword > --- INVENTORY -------- Wheel Wheel Relay Coupler [NC] Relay Coupler [NC] Relay Coupler [Brawler] Relay Coupler [Brawler] Relay Coupler [Demolisher] Relay Coupler [Hunter] Relay Coupler [Hunter] Particle Gun Particle Gun Heavy Assault Rifle Mini Grenade Launcher Datajack Improved Datajack Katana Greatsword [Rating: 37] Favorites ----------- Power Improved Ion Engine Engine Improved Ion Engine Power Core Light Nuclear Core Propulsion Wheel Wheel Wheel Utility High-capacity Storage Unit Device Advanced Terrain Scanner Storage High-capacity Storage Unit Processor Improved Signal Interpreter Hackware Relay Coupler [NC] Protection Propulsion Shielding Weapon Improved Datajack Energy Gun Particle Gun Ballistic Gun Heavy Assault Rifle Launcher Mini Grenade Launcher Special Weapon Remote Datajack Slashing Weapon Katana Special Melee Weapon Improved Datajack Build | -11 -10 -9 -8 -8 -7 -7 -7 -7 ------- Run | Scr Mat Mat Mat Gar Fac Gar Fac Gar Slots Evolved 6 | . . 2 2 . 2 . . . Power . | . . . . . . . . . Propulsion . | . . . . . . . . . Utility 6 | . . 2 2 . 2 . . . Weapon . | . . . . . . . . . Parts Attached 84 | 6 . 15 4 11 9 27 9 3 Power 7 | 1 . 2 . 1 . 2 . 1 Engine 5 | 1 . 2 . 1 . . . 1 Core 2 | . . . . . . 2 . . Reactor . | . . . . . . . . . Propulsion 13 | 2 . 2 1 2 2 2 2 . Treads . | . . . . . . . . . Leg . | . . . . . . . . . Wheel 13 | 2 . 2 1 2 2 2 2 . Hover . | . . . . . . . . . Flight . | . . . . . . . . . Utility 31 | 1 . 5 2 3 5 9 4 2 Device 5 | . . 3 . 1 . . 1 . Storage 5 | 1 . 1 . 1 . 1 1 . Processor 1 | . . . 1 . . . . . Hackware 13 | . . . . 1 5 6 1 . Protection 7 | . . 1 1 . . 2 1 2 Artifact . | . . . . . . . . . Weapon 33 | 2 . 6 1 5 2 14 3 . Energy Gun 5 | 1 . . . 1 . 3 . . Energy Cannon . | . . . . . . . . . Ballistic Gun 10 | 1 . 5 . 2 . 2 . . Ballistic Cannon . | . . . . . . . . . Launcher 6 | . . 1 1 2 . 2 . . Special Weapon 1 | . . . . . . . 1 . Impact Weapon . | . . . . . . . . . Slashing Weapon 7 | . . . . . 1 5 1 . Piercing Weapon . | . . . . . . . . . Special Melee Weapon 4 | . . . . . 1 2 1 . Unidentified Prototypes . | . . . . . . . . . Parts Lost 35 | . . 8 4 4 2 15 . 2 Power 5 | . . 2 . 1 . 2 . . Propulsion 12 | . . 3 1 1 2 4 . 1 Utility 10 | . . 1 2 1 . 5 . 1 Weapon 8 | . . 2 1 1 . 4 . . Highest Loss Streak 9 | . . 2 2 3 2 9 . 2 Average Slot Usage (%) 77 | . 83 66 75 80 82 77 77 88 Engine 4 | . 14 5 9 8 7 2 . 1 Wheel 10 | . 28 16 8 12 14 7 5 10 Device 5 | . . 11 14 18 . . 2 . Storage 9 | . 12 9 9 10 15 11 3 7 Processor 1 | . . . 7 9 . . . . Hackware 26 | . . . . 3 29 41 46 41 Protection 2 | . . 2 11 1 . 1 3 11 Energy Gun 1 | . 14 . . 5 . 1 . . Ballistic Gun 4 | . 14 17 14 5 . . . . Launcher 2 | . . 2 1 6 4 . . . Slashing Weapon 3 | . . . . . 2 5 6 7 Special Melee Weapon 2 | . . . . . 7 2 4 . Naked Turns . | . . . . . . . . . Heaviest Build 78 | 10 10 50 50 77 74 78 38 57 Greatest Support 32 | 32 32 32 10 20 28 28 20 20 Greatest Overweight (x) 12 | . . 4 4 4 6 12 3 5 Average Overweight (x) 2 | . . 2 4 3 2 4 . 2 Largest Inventory Capacity 20 | 6 6 12 12 20 20 20 12 12 Average Capacity 13 | 5 5 10 12 13 20 16 8 12 Most Carried 20 | . 3 5 9 15 20 20 12 12 Average Carried 10 | . 1 4 5 10 18 14 8 11 Final Capacity 20 | 6 4 12 12 20 20 12 12 12 Final Carried 20 | . 3 5 8 15 20 12 12 11 Class Distribution -------------------- 68% | Bothacker-Mutant 17% | Scavenger-Mutant 14% | Mutant Dominant Class ---------------- Mutant | -10/Materials Mutant | -9/Materials Scavenger-Mutant | -8/Materials Scavenger-Mutant | -8/Garrison Bothacker-Mutant | -7/Factory Bothacker-Mutant | -7/Garrison Bothacker-Mutant | -7/Factory Bothacker-Mutant | -7/Garrison Resources | -11 -10 -9 -8 -8 -7 -7 -7 -7 ----------- Run | Scr Mat Mat Mat Gar Fac Gar Fac Gar Matter Collected 1498 | 225 . 415 71 265 92 219 185 26 Remotely . | . . . . . . . . . Salvage Created 1732 | . . 474 81 294 206 417 198 62 Parts 121 | . . 43 13 17 10 20 15 3 Haulers Intercepted . | . . . . . . . . . Recyclers Shooed 4 | . . 1 1 . 2 . . . Parts Field Recycled . | . . . . . . . . . Retrieved Matter . | . . . . . . . . . Parts Self-Destructed . | . . . . . . . . . Prevented . | . . . . . . . . . Kills | -11 -10 -9 -8 -8 -7 -7 -7 -7 ------- Run | Scr Mat Mat Mat Gar Fac Gar Fac Gar Combat Hostiles Destroyed 45 | . . 15 2 15 . 11 1 1 Melee 9 | . . . . . . 7 1 1 Guns 15 | . . 9 1 4 . 1 . . AOE 21 | . . 6 1 11 . 3 . . Classes Destroyed 9 | . . 5 . 1 2 . 1 . Worker 2 | . . . . . 1 . 1 . Builder 9 | . . 2 2 . 1 . 4 . Tunneler 1 | . . . . . . . 1 . Recycler 2 | . . . . . 2 . . . Watcher 2 | . . 2 . . . . . . Swarmer 17 | . . 7 . 7 . 3 . . Grunt 17 | . . 5 . 4 . 8 . . Duelist 1 | . . . . 1 . . . . Sentry 10 | . . 3 2 3 . . 1 1 Best Kill Streak 9 | . . 7 4 9 2 3 3 1 Combat Bots Only 9 | . . 6 2 9 . 3 1 1 Max Kills in Single Turn 4 | . . 3 2 4 1 2 1 1 Gunslinging . | . . . . . . . . . Exploded 4 | . . 2 1 4 . 2 . . Melee 1 | . . . . . . 1 1 1 Uniques/NPCs Destroyed . | . . . . . . . . . Combat | -11 -10 -9 -8 -8 -7 -7 -7 -7 -------- Run | Scr Mat Mat Mat Gar Fac Gar Fac Gar Damage Taken 4058 | . 208 878 288 428 258 1654 20 324 Core 1213 | . 66 229 67 147 108 517 . 79 Absorbed by Shields . | . . . . . . . . . Core Remaining (%) 69 | 100 73 42 . 61 . . . . Volleys Fired 113 | 4 . 48 9 29 . 8 15 . Largest 2 | 2 . 2 2 2 . 2 1 . Hottest 95 | 70 . 46 53 85 . 95 30 . Shots Fired 164 | 8 . 81 14 34 . 12 15 . Gun 124 | 8 . 77 10 21 . 8 . . Cannon . | . . . . . . . . . Launcher 25 | . . 4 4 13 . 4 . . Special 15 | . . . . . . . 15 . Kinetic 109 | 4 . 77 10 15 . 3 . . Thermal 15 | 4 . . . 6 . 5 . . Explosive 25 | . . 4 4 13 . 4 . . Electromagnetic . | . . . . . . . . . Robot Hit Streak 18 | 2 . 10 9 12 . 18 7 . Robot Miss Streak 5 | 1 . 5 2 4 . 3 3 . Penetration Max . | . . . . . . . . . Secondary Targets 2 | . . 1 . . . 1 . . Max Gunslinging Chain 1 | . . 1 . . . 1 . . Shots Hit Robots 171 | 5 . 42 11 15 24 32 33 9 Core Hits 98 | . . 24 7 29 4 25 6 3 Critical Hits 3 | . . . . . . 2 1 . Critical Kills 3 | . . . . . . 2 1 . Critical Parts Destroyed . | . . . . . . . . . Melee Attacks 138 | . . . . . 33 45 49 11 Impact . | . . . . . . . . . Slashing 100 | . . . . . 17 32 40 11 Piercing . | . . . . . . . . . Sneak Attacks 29 | . . . . . 12 3 14 . Combat Hostiles 4 | . . . . . . 3 1 . Follow-up Attacks . | . . . . . . . . . Damage Inflicted 6084 | 59 . 1039 279 1113 682 1532 1102 278 Guns 989 | 59 . 604 127 127 . 72 . . Cannons . | . . . . . . . . . Explosions 1988 | . . 435 146 986 . 421 . . Melee 3067 | . . . . . 682 1020 1087 278 Ramming 40 | . . . 6 . . 19 15 . Kinetic 860 | 21 . 604 127 64 . 44 . . Thermal 129 | 38 . . . 63 . 28 . . Explosive 1988 | . . 435 146 986 . 421 . . Electromagnetic . | . . . . . . . . . Impact . | . . . . . . . . . Slashing 3067 | . . . . . 682 1020 1087 278 Piercing . | . . . . . . . . . Highest Corruption . | . . . . . . . . . Average Corruption . | . . . . . . . . . Corruption Purged . | . . . . . . . . . Overload Shots . | . . . . . . . . . Overflow Damage 728 | . . 10 . 24 163 60 471 . Projectiles . | . . . . . . . . . Explosions 34 | . . 10 . 24 . . . . Melee 694 | . . . . . 163 60 471 . Knockbacks . | . . . . . . . . . Impact . | . . . . . . . . . Kinetic . | . . . . . . . . . Secondary . | . . . . . . . . . Self-Inflicted Damage 147 | . . . 3 59 . 78 7 . Shots 5 | . . . . 3 . 2 . . Rammed 5 | . . . 1 . . 2 2 . Targets Rammed 5 | . . . 1 . . 2 2 . Kicked . | . . . . . . . . . Crushed . | . . . . . . . . . Highest Temperature 81 | 70 . 5 4 14 . 81 . 1 Average Temperature 20 | 35 . 3 3 5 . 30 . 1 Received Heat Transfer 1461 | . . 288 90 153 . 858 . 72 Siege Activations . | . . . . . . . . . Robots Corrupted . | . . . . . . . . . Combat Hostiles . | . . . . . . . . . Parts Fried . | . . . . . . . . . Impact Corruptions . | . . . . . . . . . Robots Melted . | . . . . . . . . . Combat Hostiles . | . . . . . . . . . Parts Melted 1 | . . . . 1 . . . . Heat Transferred 333 | 111 . . . 148 . 74 . . Parts Sabotaged . | . . . . . . . . . Parts Stolen . | . . . . . . . . . Parts Stripped . | . . . . . . . . . Power Chain Reactions . | . . . . . . . . . Missiles Intercepted . | . . . . . . . . . Alert | -11 -10 -9 -8 -8 -7 -7 -7 -7 ------- Run | Scr Mat Mat Mat Gar Fac Gar Fac Gar Peak Influence 827 | . 45 405 241 827 489 525 334 178 Initial 434 | . . 18 89 150 434 234 228 163 Average 328 | . 28 218 142 567 411 399 188 163 Maximum Alert Level 3 | . . 2 1 3 2 2 1 . Low Security (%) 25 | 100 100 32 66 4 . . 51 100 Level 1 34 | . . 60 33 13 37 28 48 . Level 2 35 | . . 7 . 58 62 71 . . Level 3 3 | . . . . 23 . . . . Level 4 . | . . . . . . . . . Level 5 . | . . . . . . . . . High Security . | . . . . . . . . . Max Security . | . . . . . . . . . Squads Dispatched 8 | . 2 2 1 . . . 3 . Investigation 2 | . . 1 . . . . 1 . Extermination 1 | . . . . . . . 1 . Reinforcement 4 | . 2 1 . . . . 1 . Assault . | . . . . . . . . . Garrison 1 | . . . 1 . . . . . Intercept . | . . . . . . . . . Construction Impeded 1 | . . . . . . . 1 . Haulers Reinforced . | . . . . . . . . . Stealth | -11 -10 -9 -8 -8 -7 -7 -7 -7 --------- Run | Scr Mat Mat Mat Gar Fac Gar Fac Gar Distress Signals 6 | . 1 1 2 . . . 2 . Communications Jammed . | . . . . . . . . . Distress Signals . | . . . . . . . . . Times Spotted 108 | . 8 26 10 22 7 24 9 2 Peak Tracking Total 10 | . 6 6 8 10 4 8 3 2 Tactical Retreats 12 | . 1 2 . 7 1 1 . . Traps | -11 -10 -9 -8 -8 -7 -7 -7 -7 ------- Run | Scr Mat Mat Mat Gar Fac Gar Fac Gar Traps Triggered 8 | . . 1 . 4 . 2 1 . Indirectly . | . . . . . . . . . Trap Hack Attempts . | . . . . . . . . . Triggered . | . . . . . . . . . Disarmed . | . . . . . . . . . Reprogrammed . | . . . . . . . . . Reused . | . . . . . . . . . Traps Extracted . | . . . . . . . . . Installed . | . . . . . . . . . Triggered . | . . . . . . . . . Machines | -11 -10 -9 -8 -8 -7 -7 -7 -7 ---------- Run | Scr Mat Mat Mat Gar Fac Gar Fac Gar Machines Disabled 11 | . . . . 2 . 2 7 . Max in Single Turn 1 | . . . . 1 . 1 . . Garrison Relay 4 | . . . . 2 . 2 . . Machines Sabotaged . | . . . . . . . . . Garrisons Compromised . | . . . . . . . . . Overloaded Fab Kills . | . . . . . . . . . Fab Network Shutdowns . | . . . . . . . . . Hacking | -11 -10 -9 -8 -8 -7 -7 -7 -7 --------- Run | Scr Mat Mat Mat Gar Fac Gar Fac Gar Machines Accessed 10 | . 1 . 2 . 3 . 4 . Terminals 7 | . 1 . 1 . 2 . 3 . Fabricators . | . . . . . . . . . Repair Stations . | . . . . . . . . . Recycling Units . | . . . . . . . . . Scanalyzers . | . . . . . . . . . Garrison Access 3 | . . . 1 . 1 . 1 . Total Hacks 16 | . 2 . 4 . 4 . 6 . Successful 5 | . . . 2 . 2 . 1 . Failed 11 | . 2 . 2 . 2 . 5 . Catastrophic 6 | . 1 . 1 . 2 . 2 . Database Lockouts . | . . . . . . . . . Manual 7 | . 2 . 3 . 1 . 1 . Terminals 13 | . 2 . 3 . 3 . 5 . Fabricators . | . . . . . . . . . Repair Stations . | . . . . . . . . . Recycling Units . | . . . . . . . . . Scanalyzers . | . . . . . . . . . Garrison Access 3 | . . . 1 . 1 . 1 . Terminal Hacks 2 | . . . 1 . 1 . . . Part Schematic 1 | . . . 1 . . . . . Terminal Index 1 | . . . . . 1 . . . Fabricator Hacks . | . . . . . . . . . Repair Station Hacks . | . . . . . . . . . Recycling Unit Hacks . | . . . . . . . . . Scanalyzer . | . . . . . . . . . Garrison Access Hacks 3 | . . . 1 . 1 . 1 . Unlock Access 3 | . . . 1 . 1 . 1 . Unauthorized Hacks . | . . . . . . . . . Terminals . | . . . . . . . . . Fabricators . | . . . . . . . . . Repair Stations . | . . . . . . . . . Recycling Units . | . . . . . . . . . Scanalyzers . | . . . . . . . . . Garrison Access . | . . . . . . . . . Data Cores Recovered . | . . . . . . . . . Used . | . . . . . . . . . Hacking Detections 7 | . 1 . 1 . 2 . 3 . Full Trace Events 1 | . 1 . . . . . . . Feedback Events . | . . . . . . . . . Feedback Blocked . | . . . . . . . . . Robot Schematics Acquired . | . . . . . . . . . Robots Built . | . . . . . . . . . Matter . | . . . . . . . . . Time . | . . . . . . . . . Total Robot Build Rating . | . . . . . . . . . Part Schematics Acquired 1 | . . . 1 . . . . . Parts Built . | . . . . . . . . . Matter . | . . . . . . . . . Time . | . . . . . . . . . Total Part Build Rating . | . . . . . . . . . Parts Repaired . | . . . . . . . . . Time . | . . . . . . . . . Parts Recycled . | . . . . . . . . . Recycled Matter . | . . . . . . . . . Retrieved Matter . | . . . . . . . . . Retrieved Components . | . . . . . . . . . Parts Scanalyzed . | . . . . . . . . . Part Schematics Acquired . | . . . . . . . . . Parts Damaged . | . . . . . . . . . Bothacking | -11 -10 -9 -8 -8 -7 -7 -7 -7 ------------ Run | Scr Mat Mat Mat Gar Fac Gar Fac Gar Used RIF Installer 3 | . . . . 1 . 1 . 1 Hotswap 1 | . . . . . . 1 . . Command Fork 1 | . . . . . . . . 1 Robots Hacked 31 | . . . . . 9 8 14 . Non-combat 16 | . . . . . 6 . 10 . Combat 15 | . . . . . 3 8 4 . Robot Hacks Applied 36 | . . . . . 11 8 17 . parse_system 1 | . . . . . . . 1 . no_distress 4 | . . . . . 1 . 3 . start_evac 2 | . . . . . . . 2 . map_walls 1 | . . . . . 1 . . . map_earth 1 | . . . . . 1 . . . map_route 4 | . . . . . 1 . 3 . mark_security 3 | . . . . . 1 . 2 . overload_power 1 | . . . . . . . 1 . wipe_record 1 | . . . . . . . 1 . reboot_system 3 | . . . . . 1 1 1 . overwrite_iff 5 | . . . . . 1 4 . . streamctrl_low 2 | . . . . . 1 . 1 . streamctrl_high 1 | . . . . . . 1 . . formatsys_low 1 | . . . . . 1 . . . formatsys_high 6 | . . . . . 2 2 2 . Relay Couplers Released 17 | . . . . 10 . 7 . . Machine Destruction 17 | . . . . 10 . 7 . . Attached 12 | . . . . 1 4 6 1 . Robots Rewired . | . . . . . . . . . Allies Hacked 1 | . . . . . . . 1 . Hacks Repelled . | . . . . . . . . . Allies | -11 -10 -9 -8 -8 -7 -7 -7 -7 -------- Run | Scr Mat Mat Mat Gar Fac Gar Fac Gar Total Allies 15 | . . . . . 5 7 3 . Largest Group 4 | . . . . . 3 4 1 . Highest-Rated Group 71 | . . . . . 41 71 32 . Highest-Rated Ally 32 | . . . . . 17 32 32 . Total Orders 4 | . . . . . . 4 . . STAY 1 | . . . . . . 1 . . FOLLOW 1 | . . . . . . 1 . . TUNNEL 2 | . . . . . . 2 . . Ally Attacks 60 | . . . . . 12 27 21 . Total Damage 1071 | . . . . . 105 534 432 . Kills 11 | . . . . . 2 4 5 . Allies Corrupted . | . . . . . . . . . Allies Melted 1 | . . . . . . 1 . . Intel | -11 -10 -9 -8 -8 -7 -7 -7 -7 ------- Run | Scr Mat Mat Mat Gar Fac Gar Fac Gar Robot Analysis Total . | . . . . . . . . . Derelict Logs Recovered . | . . . . . . . . . Drone Launches . | . . . . . . . . . Drone Recoveries . | . . . . . . . . . Exploration | -11 -10 -9 -8 -8 -7 -7 -7 -7 ------------- Run | Scr Mat Mat Mat Gar Fac Gar Fac Gar Turns Passed 3899 | 54 94 459 168 663 639 814 940 68 Spaces Moved 2620 | 36 91 270 111 452 457 288 881 34 Core 553 | 4 . . . . . 68 481 . Treads . | . . . . . . . . . Legs . | . . . . . . . . . Wheels 2067 | 32 91 270 111 452 457 220 400 34 Hover . | . . . . . . . . . Flight . | . . . . . . . . . Fastest Speed 50 | 50 100 100 120 100 110 50 50 90 Average Speed 106 | 94 100 108 120 115 113 182 73 103 Slowest Speed 650 | 100 100 120 120 120 150 650 110 130 Overloaded Moves . | . . . . . . . . . Propulsion Burnouts . | . . . . . . . . . Robots Hopped . | . . . . . . . . . Cave-ins Triggered . | . . . . . . . . . Exploration Rate (%) 24 | 3 29 34 15 52 11 50 19 6 Regions Visited 8 Branch Regions . Pre-discovered Areas . | . . . . . . . . . Known Exits Taken 3 | . . . 1 . 1 . 1 . Unknown Exits Taken 3 | 1 1 1 . . . . . . Scrap Searched . | . . . . . . . . . Spaces Dug 25 | . . . . . 4 . 21 . Terrain Destroyed 178 | . . 16 26 81 4 30 21 . Melee 25 | . . . . . 4 . 21 . Projectile . | . . . . . . . . . AOE 153 | . . 16 26 81 . 30 . . Terrain Rammed . | . . . . . . . . . Walls Destroyed . | . . . . . . . . . Machines Disabled . | . . . . . . . . . Actions | -11 -10 -9 -8 -8 -7 -7 -7 -7 --------- Run | Scr Mat Mat Mat Gar Fac Gar Fac Gar Total 3384 | 45 94 352 131 561 544 504 1102 51 Wait 276 | . . 13 1 18 33 86 122 3 Move 2615 | 35 90 269 111 451 457 287 881 34 Hop . | . . . . . . . . . Pick Up 61 | . 3 5 4 17 6 16 10 . Fast Attach 34 | 6 . 8 2 1 2 6 8 1 Attach 36 | . . 4 2 8 5 16 . 1 Detach 11 | . . . 1 . 2 7 1 . Swap 14 | . . 3 . 2 2 5 1 1 Drop 19 | . 1 2 . 3 1 8 4 . Fire 113 | 4 . 48 9 29 . 8 15 . Melee 138 | . . . . . 33 45 49 11 Ram 5 | . . . 1 . . 2 2 . Kick . | . . . . . . . . . Crush . | . . . . . . . . . Escape Stasis 56 | . . . . 32 . 16 8 . Rewire 6 | . . . . . 3 2 1 . Trap . | . . . . . . . . . Miscellaneous . | . . . . . . . . . Route ------- -11/Scrapyard -10/Materials -9/Materials -8/Materials -8/Garrison (discovered 2 exits: *Fac x2) -7/Factory -7/Garrison -7/Factory (discovered 3 exits: [Sto] / [Low] / Gar) -7/Garrison History --------- Turn | Location | Event 3 | -11/Scrapyard | Discovered new exit (range 15) 55 | -11/Scrapyard | Entered Materials 137 | -10/Materials | Discovered new exit (range 14) 149 | -10/Materials | Entered another Materials area 149 | -9/Materials | Evolved 2 slots: Utility x2 316 | -9/Materials | Build established: Mutant 479 | -9/Materials | Core integrity fell below 50% 542 | -9/Materials | Discovered new exit (range 8) 608 | -9/Materials | Entered another Materials area 608 | -8/Materials | Evolved 2 slots: Utility x2 723 | -8/Materials | Garrison activated, responded to threat 776 | -8/Materials | Identified exit to Garrison 776 | -8/Materials | Entered Garrison 801 | -8/Garrison | Build established: Scavenger-Mutant 872 | -8/Garrison | Triggered checkpoint 923 | -8/Garrison | Destroyed 9 combat bots 932 | -8/Garrison | Lost 3 parts (1n1u1w) 968 | -8/Garrison | Discovered new exit (range 10) 980 | -8/Garrison | Identified exit to Factory 1069 | -8/Garrison | Discovered exit to Factory (range 11) 1089 | -8/Garrison | Installed Relay Interface Framework 1130 | -8/Garrison | Triggered checkpoint 1166 | -8/Garrison | Garrison Relay disabled 1286 | -8/Garrison | Triggered checkpoint 1334 | -8/Garrison | Garrison Relay disabled 1439 | -8/Garrison | Entered Factory 1439 | -7/Factory | Evolved 2 slots: Utility x2 1484 | -7/Factory | Build established: Bothacker-Mutant 2078 | -7/Factory | Identified exit to Garrison 2078 | -7/Factory | Entered Garrison 2078 | -7/Garrison | Accompanied by 2 allies 2084 | -7/Garrison | Expanded RIF knowledge: Hotswap 2148 | -7/Garrison | Triggered checkpoint 2208 | -7/Garrison | Garrison Relay disabled 2384 | -7/Garrison | Triggered checkpoint 2490 | -7/Garrison | Core integrity fell below 50% 2510 | -7/Garrison | Lost 5 parts (2n1u2w) 2576 | -7/Garrison | Triggered checkpoint 2598 | -7/Garrison | Garrison Relay disabled 2602 | -7/Garrison | Core integrity fell below 20% 2636 | -7/Garrison | Lost 9 parts (1p2n4u2w) 2846 | -7/Garrison | Discovered new exit (range 8) 2892 | -7/Garrison | Entered Factory 3184 | -7/Factory | Discovered new exit (range 54) 3555 | -7/Factory | Discovered new exit (range 128) 3832 | -7/Factory | Identified exit to Garrison 3832 | -7/Factory | Entered Garrison 3837 | -7/Garrison | Expanded RIF knowledge: Command Fork 3900 | -7/Garrison | Destroyed by Y-54 Guardian with Flak Gun Last Messages --------------- >>wipe_record Installed hostile record filter. Deleted hostile record. 03809_ U-05 Engineer lays Concrete. 03814_ K-01 Serf cleans the Construction Platform. 03828_ U-05 Engineer exits level. 03832_ Connecting with Garrison Access... >>Unlock Access door unlocked. 03832_ EXIT=UNLOCKED: GARRISON LOCATION=GARRISON GOAL=ESCAPE 03836_ Initiating installation procedure... 03837_ Expanded RIF knowledge: Command Fork. 03864_ Relay Coupler [Sentry] destroyed. 03864_ Wheel destroyed. 03882_ Y-54 Guardian Gatling Laser severed. 03889_ Y-54 Guardian destroyed. 03892_ Acquired 26 matter. 03895_ Acquired Imp. Deuterium Engine. Map ----- +----------------------------------------------------+ | | | | | | | | | ?????????????????????????????????????????????????? | | ?????????????????????????????????????????????????? | | ?????????????????????????????????????????????????? | | ?????????????????????????????????????????????????? | | ?????????????????????????????????????????????????? | | ?????????????????????????????????????????????????? | | ?????????????????????????????????????????????????? | | ?????????????????????????????????????????????????? | | ?????????????????############????????????????????? | | ?????????????????#""""# #????????????????????? | | ?????????????????#" #????????????????????? | | ?????????????????#""""# #????????????????????? | | ?????????????????######## #????????????????????? | | ????????????????????????# #????????????????????? | | ????????????????????????# #????????????????????? | | ????????????????????????# #????????????????????? | | ????????????????????????# #????????????????????? | | ????????????????????????# #????????????????????? | | ????????????????????????# #????????????????????? | | ??????????????????????### ##???????????????????? | | ??????????????????????? Y !=#???????????????????? | | ????????????????????????#@%[##???????????????????? | | ????????????????????????# #????????????????????? | | ????????????????????????# #????????????????????? | | ????????????????????????# #????????????????????? | | ????????????????????????# #????????????????????? | | ????????????????????????# #????????????????????? | | ????????????????????????# #????????????????????? | | ????????????????????????# #????????????????????? | | ????????????????????????# #????????????????????? | | ????????????????????????# #????????????????????? | | ????????????????????????# #????????????????????? | | ????????????????????????# #????????????????????? | | ????????????????????????# #????????????????????? | | ????????????????????????# #????????????????????? | | ????????????????????????# #????????????????????? | | ???????????????????????? ?????????????????????? | | ????????????????????????? ?????????????????????? | | ?????????????????????????????????????????????????? | | ?????????????????????????????????????????????????? | | ?????????????????????????????????????????????????? | | ?????????????????????????????????????????????????? | | ?????????????????????????????????????????????????? | | ?????????????????????????????????????????????????? | | ?????????????????????????????????????????????????? | | ?????????????????????????????????????????????????? | +----------------------------------------------------+ Best States ------------- Heat Dissipation 44 Energy Generation 16 Energy Capacity 290 Matter Stores 300 Matter Capacity 300 Sight Range 16 Terrain Scan Range 20 Terrain Scan Density 10 Armor Coverage 300 Core Shielding 20 Propulsion Shielding 33 Evasion (%) 50 Defensive Hacking 10 Relay Coupler Types 138 Relay Coupler Value 6 Item Schematics ----------------- Datajack | -8/Materials | Hacked Robot Schematics ------------------ None Fabricated ------------ Nothing Alien Tech Used ----------------- None Achievements -------------- None Challenges ------------ None Game ------ Seed LaserHoverNanoactuators Manual? 0 Play Time 00:52:32 Cumulative 105.5 hours Start 2021.06.11 @ 14:13:48 End 2021.06.11 @ 15:15:09 Sessions 1 Manual Loads 0 Difficulty Rogue Special Mode None Game No. 160 Rogue 160 Adventurer 0 Explorer 0 Win Type - Total 3 Types 2/0/0/1/0/0/0/0/0 Lore% 48 Gallery% 69 Achievement% 57 Wizard Run 0 Options --------- ASCII 0 Keyboard 0 Movement Numpad Keybinds 0 Fullscreen 1 Font 18/Terminus Map View 76x50 Tactical HUD 1 Map Filters NONE Filters NONE Steam 1 RUN: 6339e6df-9802-42ee-b668-a56695fa707a